Cogmind - Beta 17 @@@ ROGUE MODE // 2026.07.03 @ 04:03:49 Player: TheSkyeDoctor Result: Destroyed by S-27 Virus with Autogun Performance ------------- Evolutions (5) 2500 Regions Visited (10) 2000 Robots Destroyed (85) 425 Value Destroyed (2806) 2806 Prototype IDs (30) 600 Alien Tech Used (0) 0 Bonus (1266) 1266 TOTAL SCORE: 9597 Bonus ------- High Alert Combat Kills 137 Follower Combat Kills 976 Aligned with FarCom 300 Friendly Fire -147 Cogmind --------- Core Integrity 0/1000 Matter 235/300 Energy 100/100 System Corruption 1% Temperature Cool (0) Movement Core (50) Location -5/Factory Parts ------- > --- POWER (1) -------- (None) > --- PROPULSION (7) --- (None) > --- UTILITY (5) ------ Improved Signal Interpreter Advanced Terrain Scan Processor > --- WEAPON (4) ------- (None) > --- INVENTORY (5) ---- High-capacity Matter Pod (0) Improved Terrain Scanner Modified TNC Advanced System Restoration Module Power Sword Peak State ------------ > --- POWER ------------ Light Neutrino Core > --- PROPULSION ------- Cesium-ion Thruster Xenon Bombardment Thruster Xenon Bombardment Thruster Diametric Drive Improved Diametric Drive > --- UTILITY ---------- Improved Heat Sink Large Storage Unit Improved Signal Interpreter Improved Light Armor Plating Hacking Suite > --- WEAPON ----------- Thermic Laser Advanced Assault Cannon Light Antimatter Cannon Katana > --- INVENTORY -------- Light Neutrino Core Armored Huge Wheel Nuclear Pulse Thruster High-capacity Matter Pod Improved Terrain Scanner Improved Terrain Scan Processor Seismic Detector Modified TNC Improved Targeting Computer Improved Cloaking Device Improved Light Armor Plating Field Laser Assault Cannon Heavy Rocket Launcher [Rating: 73] Favorites ----------- Power Ion Engine Engine Ion Engine Power Core Light Nuclear Core Propulsion Light Treads Treads Light Treads Wheel Armored Huge Wheel Flight Unit Xenon Bombardment Thruster Utility Large Storage Unit Device Seismic Detector Storage Large Storage Unit Processor Improved Signal Interpreter Hackware Hacking Suite Protection Improved Light Armor Plating Weapon Autogun Energy Gun Particle Gun Ballistic Gun Autogun Ballistic Cannon Assault Cannon Launcher Rocket Launcher Impact Weapon Heavy Flail Slashing Weapon Katana Build | -11 -10 -10 -10 -9 -8 -7 -7 -7 -6 -5 ------- Run | Yrd Mat Min Exi Min Mat Fac Was Fac Fac Fac Slots Evolved 10 | . . . . . 4 2 . . 2 2 Power . | . . . . . . . . . . . Propulsion 5 | . . . . . 1 1 . . 1 2 Utility 3 | . . . . . 1 1 . . 1 . Weapon 2 | . . . . . 2 . . . . . Parts Attached 69 | 7 4 3 1 1 5 18 . 3 19 8 Power 9 | 1 1 1 . . . 2 . . 2 2 Engine 4 | 1 1 1 . . . 1 . . . . Core 5 | . . . . . . 1 . . 2 2 Reactor . | . . . . . . . . . . . Propulsion 20 | 2 . . . . 1 8 . . 9 . Treads 5 | 2 . . . . 1 2 . . . . Leg . | . . . . . . . . . . . Wheel 3 | . . . . . . 3 . . . . Hover . | . . . . . . . . . . . Flight 12 | . . . . . . 3 . . 9 . Utility 21 | 2 2 1 . 1 . 4 . 1 4 6 Device 7 | 1 . . . . . 2 . . 2 2 Storage 3 | 1 1 . . . . . . . . 1 Processor 4 | . . . . 1 . . . . 1 2 Hackware 2 | . . . . . . 2 . . . . Protection 5 | . 1 1 . . . . . 1 1 1 Artifact . | . . . . . . . . . . . Weapon 19 | 2 1 1 1 . 4 4 . 2 4 . Energy Gun 4 | 1 . 1 . . . 1 . . 1 . Energy Cannon . | . . . . . . . . . . . Ballistic Gun 4 | 1 1 . 1 . 1 . . . . . Ballistic Cannon 5 | . . . . . 1 2 . 1 1 . Launcher 3 | . . . . . 1 . . . 2 . Special Weapon . | . . . . . . . . . . . Impact Weapon 2 | . . . . . 1 1 . . . . Slashing Weapon 1 | . . . . . . . . 1 . . Piercing Weapon . | . . . . . . . . . . . Special Melee Weapon . | . . . . . . . . . . . Unidentified Prototypes 5 | . . . . . . . . . 5 . Parts Lost 41 | . 1 3 . . 1 8 . . 16 12 Power 7 | . 1 . . . . 2 . . 3 1 Propulsion 14 | . . 1 . . 1 2 . . 7 3 Utility 9 | . . 1 . . . 1 . . 3 4 Weapon 11 | . . 1 . . . 3 . . 3 4 Highest Loss Streak 11 | . 1 2 . . 1 2 . . 11 9 To Critical Strikes . | . . . . . . . . . . . Average Backups 11 | 2 7 13 15 15 14 11 13 14 12 9 Power . | . . 1 1 1 1 . 1 1 . . Propulsion 2 | . 1 1 1 1 2 3 4 5 2 . Utility 5 | . 2 5 7 8 7 6 7 7 6 6 Weapon 2 | . 2 6 5 5 3 1 1 1 1 2 Tool/Special . | . . . . . . . . . . . Unused Backups 11 | . 1 3 . . 1 . . 3 . 3 Power . | . . . . . . . . . . . Propulsion 4 | . . 2 . . 1 . . 1 . . Utility 3 | . . . . . . . . 1 . 2 Weapon 4 | . 1 1 . . . . . 1 . 1 Tool/Special . | . . . . . . . . . . . Average Slot Usage (%) 82 | . 100 78 85 85 81 72 84 84 97 50 Engine 8 | . 14 14 14 14 9 2 7 7 3 . Core 1 | . . . . . . 3 . . 1 4 Treads 10 | . 28 15 14 14 10 4 . . . . Wheel 1 | . . . . . . 4 15 15 . . Flight 6 | . . . . . . 2 . . 31 12 Device 4 | . 8 1 4 2 7 2 . . 5 4 Storage 9 | . 14 14 14 14 9 7 7 7 6 4 Processor 5 | . . . . 11 9 7 7 7 6 16 Hackware 2 | . . . . . . 6 7 7 5 . Protection 4 | . 5 4 9 . . 4 7 7 5 . Energy Gun 8 | . 14 14 14 14 5 1 7 7 5 1 Ballistic Gun 8 | . 14 14 14 14 17 4 . . . . Ballistic Cannon 4 | . . . . . 2 8 15 15 12 3 Impact Weapon 1 | . . . . . 3 7 7 7 . . Peak Build Rating 73 | 7 10 15 15 15 25 47 46 48 73 62 Average Rating 26 | 5 7 9 14 14 22 30 46 47 55 42 On Entrance 23 | . 7 10 15 13 15 22 46 46 48 31 Avg Prop Armor Cover (%) 7 | . . . . . . 11 . . 5 . Naked Turns . | . . . . . . . . . . . Heaviest Build 51 | 15 33 38 38 36 46 49 49 50 51 45 Greatest Support 56 | 40 40 40 20 20 42 56 56 56 35 21 Greatest Overweight (x) 6 | . . 1 1 1 2 3 . . 1 6 Average Overweight (x) . | . . . 1 1 1 . . . . . Largest Inventory Capacity 15 | 8 15 15 15 15 15 15 15 15 15 15 Average Capacity 14 | 6 13 15 15 15 15 15 15 15 15 13 Most Carried 15 | 4 14 15 15 15 15 15 15 15 15 12 Average Carried 12 | 2 7 13 14 15 14 12 14 14 13 9 Final Capacity 15 | 8 15 15 15 15 15 15 15 15 15 5 Final Carried 15 | 4 13 15 15 15 15 14 15 15 11 5 Class Distribution -------------------- 59% | Mutant 36% | Skirmisher 4% | Scavenger-Skirmisher Dominant Class ---------------- Mutant | -10/Materials Mutant | -10/Mines Mutant | -10/Exiles Mutant | -9/Mines Skirmisher | -8/Materials Mutant | -7/Factory Skirmisher | -7/Waste Skirmisher | -7/Factory Skirmisher | -6/Factory Mutant | -5/Factory Resources | -11 -10 -10 -10 -9 -8 -7 -7 -7 -6 -5 ----------- Run | Yrd Mat Min Exi Min Mat Fac Was Fac Fac Fac Matter Collected 3043 | 271 431 131 . 42 435 246 163 168 588 568 Remotely . | . . . . . . . . . . . Salvage Created 2506 | 26 567 333 . 31 467 229 . 182 496 175 Parts 131 | 3 36 15 . 4 35 7 . 6 15 10 Haulers Intercepted 3 | . 2 . . . . . . . 1 . Recyclers Shooed 4 | . . . . . 2 . . . 1 1 Parts Field Recycled . | . . . . . . . . . . . Retrieved Matter . | . . . . . . . . . . . Parts Self-Destructed . | . . . . . . . . . . . Prevented . | . . . . . . . . . . . Parts Restored . | . . . . . . . . . . . Kills | -11 -10 -10 -10 -9 -8 -7 -7 -7 -6 -5 ------- Run | Yrd Mat Min Exi Min Mat Fac Was Fac Fac Fac Combat Hostiles Destroyed 64 | . 14 9 . 2 17 5 . 4 9 4 Melee 3 | . . . . . . 1 . 2 . . Guns 33 | . 14 9 . 2 6 . . . . 2 Cannons 12 | . . . . . . 3 . 2 5 2 AOE 15 | . . . . . 11 . . . 4 . Classes Destroyed 15 | 1 6 . . . 4 1 . 1 2 . Worker 6 | . 1 . . . 3 . . 1 1 . Tunneler 1 | 1 . . . . . . . . . . Hauler 3 | . 2 . . . . . . . 1 . Recycler 1 | . . . . . 1 . . . . . Operator 3 | . 2 . . . 1 . . . . . Watcher 6 | . 1 . . . . 1 . . 1 3 Swarmer 19 | . 6 3 . 2 8 . . . . . Grunt 27 | . 8 6 . . 6 2 . 3 2 . Brawler 1 | . . . . . . . . 1 . . Duelist 1 | . . . . . 1 . . . . . Sentry 3 | . . . . . 1 1 . . 1 . Specialist 3 | . . . . . . . . . 3 . Hunter 3 | . . . . . . . . . 1 2 Programmer 5 | . . . . . . 2 . . 1 2 Heavy 2 | . . . . . 1 . . . 1 . Thug 1 | . . . . . . . . . 1 . Best Kill Streak 7 | 1 5 5 . 2 7 2 . 2 4 3 Combat Bots Only 5 | . 5 5 . 2 4 2 . 2 4 2 Max Kills in Single Turn 4 | 1 2 2 . 2 4 1 . 1 3 1 Gunslinging 1 | . 1 1 . 1 . . . . . . Exploded 3 | . . . . . 3 . . . 2 . Melee 1 | . . . . . . 1 . 1 . . Uniques/NPCs Destroyed . | . . . . . . . . . . . Combat | -11 -10 -10 -10 -9 -8 -7 -7 -7 -6 -5 -------- Run | Yrd Mat Min Exi Min Mat Fac Was Fac Fac Fac Hostile Shots Fired 578 | . 39 50 . 1 70 84 . 15 155 164 Missed 171 | . 8 13 . 1 19 31 . 5 43 51 Hits 407 | . 31 37 . . 51 53 . 10 112 113 Melee 4 | . . . . . . . . 4 . . Projectile 403 | . 31 37 . . 51 53 . 6 112 113 AOE 1 | . . . . . . . . . 1 . Critical Strikes 13 | . . 1 . . 2 3 . 1 4 2 Part Disruptions 1 | . . . . . . . . 1 . . Damage Taken 6679 | . 340 405 . . 857 563 . 395 2241 1878 Core 1998 | . 33 82 . . 152 60 . 52 611 1008 Absorbed by Shields . | . . . . . . . . . . . Regen/Repaired (Parts) 422 | . . . . . . . 108 64 250 . Core Remaining (%) 67 | 100 . . . 54 72 . . 84 28 . Volleys Fired 199 | 1 52 25 . 1 27 17 . 11 34 31 Largest 4 | 2 2 2 . 2 4 3 . 3 3 4 Hottest 191 | 70 73 88 . 88 148 83 . 140 176 191 Shots Fired 473 | 2 104 50 . 2 96 23 . 33 97 66 Gun 292 | 2 104 50 . 2 70 6 . 11 32 15 Cannon 156 | . . . . . 10 17 . 22 56 51 Launcher 25 | . . . . . 16 . . . 9 . Special . | . . . . . . . . . . . Kinetic 293 | 1 52 25 . 1 62 23 . 22 56 51 Thermal 155 | 1 52 25 . 1 18 . . 11 32 15 Explosive 24 | . . . . . 16 . . . 8 . Electromagnetic 1 | . . . . . . . . . 1 . Robot Hit Streak 21 | 1 12 21 . 2 4 6 . 4 11 7 Robot Miss Streak 6 | . 6 3 . . 3 3 . 5 5 3 Penetration Max . | . . . . . . . . . . . Secondary Targets 4 | . 1 2 . 1 . . . . . . Max Gunslinging Chain 1 | . 1 1 . 1 . . . . . . Shots Hit Robots 293 | 1 69 37 . 2 46 21 . 21 56 40 Core Hits 146 | 1 32 16 . 2 37 9 . 6 30 13 Critical Kills 1 | . 1 . . . . . . . . . Critical Parts Destroyed . | . . . . . . . . . . . Critical Strikes 17 | . 3 2 . . 1 . . 2 5 4 Burn 8 | . 2 2 . . 1 . . . 2 1 Destroy 1 | . 1 . . . . . . . . . Blast 8 | . . . . . . . . 2 3 3 Melee Attacks 46 | . . . . . 8 20 . 10 8 . Impact 38 | . . . . . 8 20 . 10 . . Slashing 8 | . . . . . . . . . 8 . Piercing . | . . . . . . . . . . . Sneak Attacks 4 | . . . . . . 1 . . 3 . Combat Hostiles 1 | . . . . . . 1 . . . . Follow-up Attacks . | . . . . . . . . . . . Damage Inflicted 7730 | 20 878 555 . 29 1489 754 . 622 2160 1223 Guns 2798 | 13 878 555 . 29 590 63 . 122 361 187 Cannons 2440 | . . . . . 153 232 . 275 744 1036 Explosions 1563 | . . . . . 746 . . . 817 . Melee 922 | . . . . . . 459 . 225 238 . Ramming 7 | 7 . . . . . . . . . . Kinetic 3668 | . 416 302 . 14 586 295 . 275 744 1036 Thermal 1570 | 13 462 253 . 15 157 . . 122 361 187 Explosive 1513 | . . . . . 746 . . . 767 . Electromagnetic 50 | . . . . . . . . . 50 . Impact 684 | . . . . . . 459 . 225 . . Slashing 238 | . . . . . . . . . 238 . Piercing . | . . . . . . . . . . . Highest Corruption 5 | . . . . . . 2 . 2 4 5 Average Corruption 2 | . . . . . . 1 . 2 3 4 Corruption Purged 7 | . . . . . . 3 . . . 4 Corruption Blocked . | . . . . . . . . . . . Effects 37 | . . . . . . 7 . 8 12 10 Message Errors 7 | . . . . . . 3 . 1 1 2 Matter Fused 10 | . . . . . . 1 . 4 4 1 Heat Flow Errors 7 | . . . . . . . . . 2 5 Energy Discharges 6 | . . . . . . 1 . 2 2 1 Data Loss (minor) 4 | . . . . . . 1 . 1 2 . Data Loss (major) 1 | . . . . . . 1 . . . . Weapon Failures 2 | . . . . . . . . . 1 1 Overload Shots . | . . . . . . . . . . . Overflow Damage 200 | . . . . . 25 46 . . 71 58 Projectiles 58 | . . . . . . . . . . 58 Explosions 49 | . . . . . 25 . . . 24 . Melee 93 | . . . . . . 46 . . 47 . Knockbacks 22 | . . . . . . 5 . 2 2 13 Impact 1 | . . . . . . 1 . . . . Kinetic 19 | . . . . . . 4 . 2 2 11 Secondary 2 | . . . . . . . . . . 2 Self-Inflicted Damage 12 | . . . . . 12 . . . . . Shots 1 | . . . . . 1 . . . . . Rammed 1 | 1 . . . . . . . . . . Targets Rammed 1 | 1 . . . . . . . . . . Kicked . | . . . . . . . . . . . Crushed . | . . . . . . . . . . . Highest Temperature 454 | 9 127 268 . 50 390 88 . 191 454 416 Average Temperature 104 | 6 33 128 . 29 150 45 . 72 115 152 Received Heat Transfer 894 | . 135 171 . . 189 180 . 36 183 . Effects 10 | . . . . . 3 . . . 4 3 Shutdowns 3 | . . . . . . . . . 2 1 Energy Bleed 2 | . . . . . . . . . 1 1 Interference 4 | . . . . . 3 . . . 1 . Matter Decay 1 | . . . . . . . . . . 1 Siege Activations . | . . . . . . . . . . . Martial Activations . | . . . . . . . . . . . Shielding Activations . | . . . . . . . . . . . Robots Disrupted . | . . . . . . . . . . . Combat Hostiles . | . . . . . . . . . . . Robots Corrupted 1 | . . . . . . 1 . . . . Combat Hostiles 1 | . . . . . . 1 . . . . Parts Fried 1 | . . . . . . 1 . . . . Impact Corruptions 5 | . . . . . . 5 . . . . Robots Melted . | . . . . . . . . . . . Combat Hostiles . | . . . . . . . . . . . Parts Melted 8 | . 2 3 . . . . . . 3 . Heat Transferred 4800 | 37 1517 888 . 37 444 . . 259 1174 444 Parts Sabotaged . | . . . . . . . . . . . Parts Stolen . | . . . . . . . . . . . Parts Stripped . | . . . . . . . . . . . Power Chain Reactions . | . . . . . . . . . . . Alert | -11 -10 -10 -10 -9 -8 -7 -7 -7 -6 -5 ------- Run | Yrd Mat Min Exi Min Mat Fac Was Fac Fac Fac Maximum Alert Level 2 | . . . . . 1 . . 2 2 1 Low Security (%) 80 | 100 100 100 . 100 67 100 100 69 23 82 Level 1 12 | . . . . . 32 . . 4 40 17 Level 2 7 | . . . . . . . . 26 35 . Level 3 . | . . . . . . . . . . . Level 4 . | . . . . . . . . . . . Level 5 . | . . . . . . . . . . . High Security . | . . . . . . . . . . . Max Security . | . . . . . . . . . . . Peak Influence 657 | 5 163 98 . 50 297 112 3 559 657 279 Initial 279 | . . 58 . . . 112 3 . 257 279 Average 103 | . 25 26 . 6 134 18 . 173 353 109 Influence Increases 3731 | 5 426 220 . 50 583 198 . 802 1098 349 Destroy 0b10 Robot/C 1800 | . 280 180 . 40 360 100 . 260 500 80 Destroy 0b10 Robot/NC 155 | 5 30 . . . 25 5 . 30 45 15 Destroy Leader 436 | . 66 40 . 10 70 32 . 34 158 26 Allied During Kill 563 | . . . . . 2 . . 324 237 . Successful Hack 48 | . 4 . . . . 23 . 11 10 . Disable Machine 210 | . 15 . . . 45 30 . 105 15 . Destroy Structure 249 | . 1 . . . 66 8 . 38 118 18 Partial Spotted 30 | . 15 . . . . . . . . 15 Lose Combat Pursuer 240 | . 15 . . . 15 . . . 15 195 Influence Decreases 3545 | 5 275 371 . 50 334 437 10 275 1054 734 Entered New Map 799 | . . 93 . . . 137 7 . 270 292 Time Decay 2169 | 5 265 248 . 50 304 247 3 239 434 374 Lost Part 331 | . 10 30 . . 10 53 . . 160 68 Lost Ally 242 | . . . . . 20 . . 32 190 . Purge Threat 4 | . . . . . . . . 4 . . Squads Dispatched 21 | . 2 1 . . 3 3 . 2 8 2 Investigation 5 | . . 1 . . . 1 . 1 1 1 Extermination 5 | . . . . . . 2 . 1 1 1 Reinforcement 11 | . 2 . . . 3 . . . 6 . Assault . | . . . . . . . . . . . Garrison . | . . . . . . . . . . . Intercept . | . . . . . . . . . . . Searches Triggered . | . . . . . . . . . . . Construction Impeded . | . . . . . . . . . . . Haulers Reinforced . | . . . . . . . . . . . Active Scanning Responses . | . . . . . . . . . . . Cargo Convoy Interrupts 1 | . . . . . . . . . 1 . Stealth | -11 -10 -10 -10 -9 -8 -7 -7 -7 -6 -5 --------- Run | Yrd Mat Min Exi Min Mat Fac Was Fac Fac Fac Distress Signals 6 | . 2 . . . . 1 . . 1 2 Communications Jammed . | . . . . . . . . . . . Distress Signals . | . . . . . . . . . . . Times Spotted 134 | . 29 9 . 1 21 6 . 17 27 24 Peak Tracking Total 8 | . 5 5 . 1 6 2 . 3 4 8 Tactical Retreats 7 | . 1 . . . 1 . . . 1 4 Traps | -11 -10 -10 -10 -9 -8 -7 -7 -7 -6 -5 ------- Run | Yrd Mat Min Exi Min Mat Fac Was Fac Fac Fac Traps Triggered 13 | . 3 . . . . 3 . . 6 1 Indirectly 1 | . . . . . . . . . 1 . Trap Hack Attempts . | . . . . . . . . . . . Triggered . | . . . . . . . . . . . Disarmed . | . . . . . . . . . . . Reprogrammed . | . . . . . . . . . . . Reused . | . . . . . . . . . . . Traps Extracted . | . . . . . . . . . . . Installed . | . . . . . . . . . . . Triggered . | . . . . . . . . . . . Machines | -11 -10 -10 -10 -9 -8 -7 -7 -7 -6 -5 ---------- Run | Yrd Mat Min Exi Min Mat Fac Was Fac Fac Fac Machines Disabled 14 | . 1 . . . 3 2 . 7 1 . Max in Single Turn 1 | . 1 . . . 1 1 . 1 1 . Garrison Access 1 | . . . . . . . . . 1 . Machines Repaired . | . . . . . . . . . . . Machines Dismantled . | . . . . . . . . . . . Machines Sabotaged . | . . . . . . . . . . . Overloaded Fab Kills . | . . . . . . . . . . . Hacking | -11 -10 -10 -10 -9 -8 -7 -7 -7 -6 -5 --------- Run | Yrd Mat Min Exi Min Mat Fac Was Fac Fac Fac Machines Accessed 20 | . 6 1 1 . 2 3 . 1 5 1 Terminals 14 | . 6 . . . 2 2 . 1 2 1 Fabricators 1 | . . . . . . . . . 1 . Repair Stations . | . . . . . . . . . . . Recycling Units . | . . . . . . . . . . . Scanalyzers 1 | . . . . . . . . . 1 . Garrison Access 2 | . . . . . . 1 . . 1 . Total Hacks 40 | . 12 1 1 . 3 9 . 3 9 2 Successful 19 | . 6 1 1 . . 4 . 3 4 . Failed 21 | . 6 . . . 3 5 . . 5 2 Catastrophic 10 | . 1 . . . 3 3 . . 2 1 Database Lockouts . | . . . . . . . . . . . Manual 32 | . 12 . 1 . 3 6 . 3 5 2 Terminals 32 | . 12 . . . 3 7 . 3 5 2 Fabricators 1 | . . . . . . . . . 1 . Repair Stations . | . . . . . . . . . . . Recycling Units . | . . . . . . . . . . . Scanalyzers 2 | . . . . . . . . . 2 . Garrison Access 3 | . . . . . . 2 . . 1 . Terminal Hacks 7 | . 1 1 1 . . 2 . 2 . . Prototype ID Bank 1 | . . . . . . 1 . . . . Open Door 1 | . . 1 . . . . . . . . Branch Access Points 1 | . . . . . . . . 1 . . Terminal Index 2 | . 1 . . . . 1 . . . . Unreport Threat 1 | . . . . . . . . 1 . . Proto ID Catalog 1 | . . . 1 . . . . . . . Fabricator Hacks 1 | . . . . . . . . . 1 . Network Status 1 | . . . . . . . . . 1 . Repair Station Hacks . | . . . . . . . . . . . Recycling Unit Hacks . | . . . . . . . . . . . Scanalyzer 2 | . . . . . . . . . 2 . Retrieve Study 2 | . . . . . . . . . 2 . Garrison Access Hacks 1 | . . . . . . . . . 1 . Seal Access 1 | . . . . . . . . . 1 . Unauthorized Hacks 8 | . 5 . . . . 2 . 1 . . Terminals 8 | . 5 . . . . 2 . 1 . . Botnet 8 | . 5 . . . . 2 . 1 . . Fabricators . | . . . . . . . . . . . Repair Stations . | . . . . . . . . . . . Recycling Units . | . . . . . . . . . . . Scanalyzers . | . . . . . . . . . . . Garrison Access . | . . . . . . . . . . . Data Cores Recovered . | . . . . . . . . . . . Used . | . . . . . . . . . . . Hacking Detections 12 | . 2 . . . 2 3 . 1 3 1 Full Trace Events 1 | . . . . . . 1 . . . . Feedback Events . | . . . . . . . . . . . Feedback Blocked . | . . . . . . . . . . . Robot Schematics Acquired . | . . . . . . . . . . . Robots Built . | . . . . . . . . . . . Authchips . | . . . . . . . . . . . Time . | . . . . . . . . . . . Total Robot Build Rating . | . . . . . . . . . . . Part Schematics Acquired . | . . . . . . . . . . . Parts Built . | . . . . . . . . . . . Authchips . | . . . . . . . . . . . Time . | . . . . . . . . . . . Total Part Build Rating . | . . . . . . . . . . . Part Studies Acquired 2 | . . . . . . . . . 2 . Parts Repaired . | . . . . . . . . . . . Time . | . . . . . . . . . . . Parts Recycled . | . . . . . . . . . . . Recycled Matter . | . . . . . . . . . . . Retrieved Matter . | . . . . . . . . . . . Retrieved Components . | . . . . . . . . . . . Parts Scanalyzed . | . . . . . . . . . . . Part Schematics Acquired . | . . . . . . . . . . . Parts Damaged . | . . . . . . . . . . . Bothacking | -11 -10 -10 -10 -9 -8 -7 -7 -7 -6 -5 ------------ Run | Yrd Mat Min Exi Min Mat Fac Was Fac Fac Fac Used RIF Installer . | . . . . . . . . . . . Robots Hacked . | . . . . . . . . . . . Non-combat . | . . . . . . . . . . . Combat . | . . . . . . . . . . . Robot Hacks Applied . | . . . . . . . . . . . Relay Couplers Released . | . . . . . . . . . . . Fabnet Peak Effective % . | . . . . . . . . . . . Robots Rewired . | . . . . . . . . . . . Allies Hacked 1 | . . . . . . . . . 1 . Hacks Repelled . | . . . . . . . . . . . Allies | -11 -10 -10 -10 -9 -8 -7 -7 -7 -6 -5 -------- Run | Yrd Mat Min Exi Min Mat Fac Was Fac Fac Fac Total Allies 21 | . . . . 1 . . 20 . . . Largest Group 20 | . . . . 1 1 . 20 20 13 . Highest-Rated Group 479 | . . . . 31 31 . 479 479 381 . Highest-Rated Ally 35 | . . . . 31 31 . 35 35 35 . Total Orders . | . . . . . . . . . . . Ally Attacks 202 | . . . . . 1 . . 80 121 . Total Damage 4545 | . . . . . 20 . . 1944 2581 . Kills 37 | . . . . . 1 . . 14 22 . Allies Corrupted 2 | . . . . . . . . . 2 . Allies Melted 1 | . . . . . . . . . 1 . Intel | -11 -10 -10 -10 -9 -8 -7 -7 -7 -6 -5 ------- Run | Yrd Mat Min Exi Min Mat Fac Was Fac Fac Fac Active Infowar (turns) 2891 | 64 738 95 174 94 757 253 . . 19 697 Terrain 715 | . . . . . . . . . 19 696 Seismic 2175 | 64 738 95 174 94 757 253 . . . . Cloaking 1 | . . . . . . . . . . 1 Robot Analysis Total . | . . . . . . . . . . . Derelict Logs Recovered 1 | . . 1 . . . . . . . . Drone Launches . | . . . . . . . . . . . Drone Recoveries . | . . . . . . . . . . . Exploration | -11 -10 -10 -10 -9 -8 -7 -7 -7 -6 -5 ------------- Run | Yrd Mat Min Exi Min Mat Fac Was Fac Fac Fac Turns Passed 7960 | 125 1278 1083 508 470 864 982 132 542 1073 903 Spaces Moved 4398 | 68 667 435 211 195 306 468 100 456 795 697 Core 184 | 2 . . . . . . . . . 182 Treads 2097 | 66 667 435 211 195 306 217 . . . . Legs . | . . . . . . . . . . . Wheels 818 | . . . . . . 209 100 456 53 . Hover . | . . . . . . . . . . . Flight 1299 | . . . . . . 42 . . 742 515 Fastest Speed 27 | 50 160 160 240 240 225 100 100 100 27 27 Average Speed 153 | 156 160 228 240 240 232 163 100 100 106 105 Slowest Speed 450 | 160 160 240 240 240 320 240 100 100 115 450 Overloaded Moves . | . . . . . . . . . . . Propulsion Burnouts . | . . . . . . . . . . . Robots Hopped . | . . . . . . . . . . . Potential Cave-ins 4 | . . . . . 3 . . . 1 . Cave-ins Triggered . | . . . . . . . . . . . Exploration Rate (%) 42 | 4 83 92 61 48 37 13 73 17 24 17 Regions Visited 10 Branch Regions 3 Pre-discovered Areas 2 | . . 1 . 1 . . . . . . Known Exits Taken 4 | . . . . 1 1 . . 1 1 . Unknown Exits Taken 4 | 1 1 1 1 . . . . . . . Scrap Searched 1 | . . 1 . . . . . . . . Spaces Dug 19 | . . . . . 5 8 . 4 2 . Terrain Destroyed 235 | . . . . . 126 8 . 5 88 8 Melee 19 | . . . . . 5 8 . 4 2 . Projectile 20 | . . . . . 1 . . 1 10 8 AOE 196 | . . . . . 120 . . . 76 . Terrain Rammed . | . . . . . . . . . . . Walls Destroyed . | . . . . . . . . . . . Machines Disabled . | . . . . . . . . . . . Actions | -11 -10 -10 -10 -9 -8 -7 -7 -7 -6 -5 --------- Run | Yrd Mat Min Exi Min Mat Fac Was Fac Fac Fac Total 5148 | 80 773 478 214 196 390 634 132 507 930 814 Wait 299 | . 32 4 . . 33 88 32 12 36 62 Move 4389 | 67 666 434 210 194 305 468 99 455 794 697 Hop . | . . . . . . . . . . . Pick Up 54 | 4 11 6 1 . 5 6 1 7 9 4 Fast Attach 32 | 7 5 1 . . 1 9 . 1 6 2 Attach 45 | . 1 1 1 . 3 10 . . 20 9 Detach 17 | . . . . . . 8 . . 7 2 Swap 33 | . 3 3 1 1 6 3 . 2 11 3 Drop 33 | . 3 4 1 . 2 5 . 9 5 4 Fire 199 | 1 52 25 . 1 27 17 . 11 34 31 Melee 46 | . . . . . 8 20 . 10 8 . Ram . | . . . . . . . . . . . Kick . | . . . . . . . . . . . Crush 1 | 1 . . . . . . . . . . Escape Stasis . | . . . . . . . . . . . Rewire . | . . . . . . . . . . . Trap . | . . . . . . . . . . . Miscellaneous . | . . . . . . . . . . . Route ------- -11/Scrapyard -10/Materials (discovered 3 exits: [*Mat x2] / *Min) -10/Mines (discovered 4 exits: [*Mat x2] / *Exi / [*Sub]) -10/Exiles -9/Mines -8/Materials (discovered 3 exits: *Fac x3) -7/Factory -7/Waste -7/Factory (discovered 3 exits: *Fac / Low x2) -6/Factory -5/Factory History --------- Turn | Location | Event 13 | -11/Scrapyard | Discovered new exit (range 16) 126 | -11/Scrapyard | Entered Materials 313 | -10/Materials | Build established: Mutant 784 | -10/Materials | Discovered new exit (range 14) 1131 | -10/Materials | Discovered new exit (range 13) 1133 | -10/Materials | Discovered new exit (range 12) 1404 | -10/Materials | Entered Mines 1580 | -10/Mines | Discovered new exit (range 6) 1581 | -10/Mines | Learned location of Storage (-8) 1633 | -10/Mines | Received a Rocket Launcher from a helpful Derelict 1756 | -10/Mines | Discovered new exit (range 6) 1836 | -10/Mines | Discovered new exit (range 7) 2293 | -10/Mines | Learned 8 Materials zone layouts 2354 | -10/Mines | Met a Derelict shopkeep closing up shop 2475 | -10/Mines | Deemed a non-threat by the Exiles lab entrance 2477 | -10/Mines | Discovered new exit (range 5) 2487 | -10/Mines | Entered Exiles 2543 | -10/Exiles | Met 8R-AWN 2586 | -10/Exiles | Met EX-HEX 2653 | -10/Exiles | Met EX-BIN 2682 | -10/Exiles | Aligned with FarCom system 2684 | -10/Exiles | Given EX-Vault access code 2739 | -10/Exiles | Opened EX-Vault 2758 | -10/Exiles | Found Modified TNC 2804 | -10/Exiles | Warned to stay clear of 0b10 Research branches 2871 | -10/Exiles | Met EX-DEC 2969 | -10/Exiles | Discovered new exit (range 14) 2995 | -10/Exiles | Left Exiles lab with Modified TNC 2995 | -10/Exiles | Entered Mines 2998 | -9/Mines | Escorted by a lone wolf Derelict 3326 | -9/Mines | Discovered new exit (range 10) 3353 | -9/Mines | Identified exit to Materials 3465 | -9/Mines | Entered Materials 3465 | -8/Materials | Accompanied by 1 ally 3465 | -8/Materials | Evolved 4 slots: Propulsion x1, Utility x1, Weapon x2 3466 | -8/Materials | Identified exit to Factory 3806 | -8/Materials | Build established: Skirmisher 4329 | -8/Materials | Entered Factory 4329 | -7/Factory | Evolved 2 slots: Propulsion x1, Utility x1 4745 | -7/Factory | Build established: Mutant 5311 | -7/Factory | Sucked down chute 5311 | -7/Factory | Entered Waste 5312 | -7/Waste | Joined by Warlord forces that had cleared the area 5350 | -7/Waste | Build established: Skirmisher 5368 | -7/Waste | Discovered new exit (range 15) 5407 | -7/Waste | Identified exit to Factory 5443 | -7/Waste | Entered Factory 5443 | -7/Factory | Accompanied by 20 allies 5585 | -7/Factory | Lost 6 allies 5755 | -7/Factory | Identified exit to Lower Caves 5921 | -7/Factory | Discovered new exit (range 12) 5932 | -7/Factory | Identified exit to Factory 5985 | -7/Factory | Entered another Factory area 5985 | -6/Factory | Accompanied by 13 allies 5985 | -6/Factory | Evolved 2 slots: Propulsion x1, Utility x1 6154 | -6/Factory | Spotted B-75 Beast 6154 | -6/Factory | Allies destroyed B-75 Beast 6188 | -6/Factory | Lost 4 allies 6260 | -6/Factory | Build established: Scavenger-Skirmisher 6635 | -6/Factory | Build established: Skirmisher 6818 | -6/Factory | Cargo convoy interrupted 7037 | -6/Factory | Discovered new exit (range 15) 7054 | -6/Factory | Core integrity fell below 50% 7058 | -6/Factory | Identified exit to Factory 7058 | -6/Factory | Entered another Factory area 7058 | -5/Factory | Evolved 2 slots: Propulsion x2 7084 | -5/Factory | Lost 11 parts (1p4n3u3w) 7338 | -5/Factory | Build established: Mutant 7800 | -5/Factory | Build established: Skirmisher 7896 | -5/Factory | Core integrity fell below 50% 7922 | -5/Factory | Lost 9 parts (1p1n4u3w) 7945 | -5/Factory | Core integrity fell below 20% 7961 | -5/Factory | Destroyed by S-27 Virus with Autogun Last Messages --------------- 07889_ U-05 Engineer completes Subcomponent Replicator. 07891_ Imp. Cloaking Device destroyed. 07891_ U-05 Engineer works on Subcomponent Replicator. 07895_ K-01 Serf collects debris. 07896_ U-05 Engineer works on Subcomponent Replicator. 07896_ K-01 Serf collects debris. 07898_ U-05 Engineer works on Subcomponent Replicator. 07900_ K-01 Serf collects debris. 07926_ System corrupted: Heat flow error (+146). 07932_ R-10 Processor collects Neutrino Core. 07933_ K-01 Serf collects debris. 07936_ Acquired 25 matter. 07937_ Acquired 5 matter. 07937_ K-01 Serf collects debris. 07942_ Penetrated by Slug. 07958_ K-01 Serf cleans the Recycling Unit. Map ----- +----------------------------------------------------+ | ????????????????????????????????????????????"" ## | | ???????????????????????????????????????????""? #? | | ??????????????????????????????????????????? ## | | ?????????????????????????????????????????????"?## | | ???????????????????????????????????????????""" ## | | ?????????????????????????????????????????????" ##? | | ?????????????????????????????????????????????? ?# | | ????????????????????????????????????????????? ??? | | ?????????????????????????????????????????????? ## | | ??????????????????????????????????????###+######? | | ??????????????????????????????????????# ? + | | ??????????????????????????????????????# #???? | | ????????????????????????############### #????? | | ????????????????????????# # #????? | | ????????????????????????# + #???? | | ????????????????????????# # #????? | | ????????????????????????# # ###### | | ????????????????????????# # | | ????????????????????????# # | | ?????????????????#??????# " | | ?????????????????# ?????# s # | | ?????????????????# ???# # | | ?????????????????# ??# s! # ###+## | | ?????????????????# ##########+##### #????? | | ?????????????????# k u s s #????? | | ?????????????????# @ #????? | | ?????????????????+ """ #????? | | ?????????????????# """" """" "Y" #????? | | ?????????????????# """"t"""" k #????? | | ?????????????????# """" """" ###+####????? | | ??????????????????? """"w"""" #? ????????? | | ????????????????????"""" """" #? ????????? | | ??????????????????????"" """" #? ????????? | | ??????????????????????""A??"" #???????????? | | ?????????????????????? ?? #???????????? | | ??????????????????????? ?? #???????????? | | ???????????????????????##?? #####+##+#???????????? | | ??????????????????????????? ?????????????????????? | | ?????????????????????????????????????????????????? | | ?????????????????????????????????????????????????? | | ?????????????????????????????????????????????????? | | ?????????????????????????????????????????????????? | | ?????????????????????????????????????????????????? | | ?????????????????????????????????????????????????? | | ?????????????????????????????????????????????????? | | ?????????????????????????????????????????????????? | | ?????????????????????????????????????????????????? | | ?????????????????????????????????????????????????? | | ?????????????????????????????????????????????????? | | ?????????????????????????????????????????????????? | +----------------------------------------------------+ Best States ------------- Heat Dissipation 51 Energy Generation 19 Energy Capacity 315 Matter Stores 300 Matter Capacity 300 Sight Range 16 Terrain Scan Range 16 Terrain Scan Density 210 Armor Coverage 150 Evasion (%) 64 Targeting Accuracy 6 Recoil Reduction 2 Offensive Hacking 10 Item Schematics ----------------- None Robot Schematics ------------------ None Fabricated ------------ Nothing Repaired ---------- Nothing Studied --------- Xenon Bombardment Thruster | -6/Factory | Hacked Cesium-ion Thruster | -6/Factory | Hacked Alien Tech Used ----------------- None Achievements -------------- None Challenges ------------ None Game ------ Seed ConceptAutogunMask Manual? 0 Play Time 00:56:33 Cumulative 112.7 hours Start 2026.07.03 @ 03:03:38 End 2026.07.03 @ 04:03:49 Sessions 1 Manual Loads 0 Difficulty Rogue Special Mode None Game No. 239 Rogue 239 Adventurer 0 Explorer 0 Win Type - Total 0 Types 0/0/0/0/0/0/0/0/0/0 Lore% 50 Gallery% 51 Achievement% 41 Wizard Run 0 Options --------- Layout 2 ASCII 0 Keyboard 1 Movement Arrows Keybinds 0 Fullscreen 1 Font 24/Smallcaps Map View 50x44 Zoom Use 0% Tactical HUD 1 Map Filters NONE Filters NONE Steam 1 RUN: 337f2b26-b65e-485c-bc2d-bd21ce61b486